Cogmind - Beta 17.1 @@@ ROGUE MODE // 2026.09.10 @ 15:28:23 Player: Foolatea Result: Smashed by cave-in Performance ------------- Evolutions (9) 4500 Regions Visited (15) 3000 Robots Destroyed (343) 1715 Value Destroyed (12238) 12238 Prototype IDs (73) 1460 Alien Tech Used (0) 0 Bonus (15624) 15624 TOTAL SCORE: 38537 Bonus ------- High Alert Combat Kills 1715 Follower Combat Kills 1574 Prayed to X0-1V1 5000 Major X0-1V1 Interference 8250 Aligned with FarCom 300 Friendly Fire -1215 Cogmind --------- Core Integrity 0/1600 Matter 198/300 Energy 88/100 System Corruption 19% Temperature Cool (32) Movement Core (250) Ox4 Location -1/Access Parts ------- > --- POWER (2) -------- (None) > --- PROPULSION (8) --- (None) > --- UTILITY (13) ----- (None) > --- WEAPON (3) ------- Enhanced Nova Cannon > --- INVENTORY (5) ---- Gyrokinetic Inverter Compact Mass Driver Enhanced Hardcell Cannon Peak State ------------ > --- POWER ------------ Micro Antimatter Reactor Micro Antimatter Reactor > --- PROPULSION ------- Linear Gravjet Linear Gravjet Improved Antigrav System Combat Antigrav System Combat Antigrav System Combat Antigrav System Combat Linear Gravjet > --- UTILITY ---------- Advanced Heat Sink Advanced Heat Sink High-capacity Storage Unit Advanced Weight Redist. System Experimental Signal Interpreter Advanced Target Analyzer Advanced Target Analyzer Hardened Heavy Armor Plating Graphene Brace Self-contained Transmogrifier X0-1V1's Piety Tracker > --- WEAPON ----------- Helical Railgun Compact Mass Driver Compact Linear Accelerator > --- INVENTORY -------- Enhanced Fission Core Reinforced Quantum Reactor Improved Hover Unit Gyrokinetic Inverter Improved Antigrav System Experimental Cooling System Advanced Signal Interpreter Hardened Heavy Armor Plating Advanced Trap Extractor HERF Cannon Nova Cannon Hypervelocity Railgun Compact Mass Driver Compact Tesla Bomb Launcher Fusion Bomb Launcher Ionic Axe Plasma Lance [Rating: 181] Favorites ----------- Power Cooled Fission Core Engine Improved Deuterium Engine Power Core Cooled Fission Core Reactor Reinforced Quantum Reactor Propulsion Improved Titanium Leg Treads Armored Medium Treads Leg Improved Titanium Leg Wheel Compact Wheel Hover Unit Combat Antigrav System Utility Self-contained Transmogrifier Device Self-contained Transmogrifier Storage Lightpack 2.0 Processor Core Analyzer Hackware Makeshift Hacking Suite Protection Improved Utility Shielding Weapon Enhanced Autogun Energy Gun Heavy EM Shotgun Energy Cannon Heavy Neutron Cannon Ballistic Gun Enhanced Autogun Ballistic Cannon Enhanced Gauss Cannon Launcher Heavy Missile Launcher Special Weapon CPS Tube Impact Weapon Powered Hammer Slashing Weapon Makeshift Axe Piercing Weapon Makeshift Spear Special Melee Weapon Improved Datajack Build | -11 -10 -9 -9 -9 -8 -8 -7 -6 -5 -5 -4 -3 -3 -2 -1 ------- Run | Yrd Mat Mat Min Exi Min Mat Fac Fac Fac Ext Fac Res Tes Res Acc Slots Evolved 18 | . . 2 . . . 2 2 2 2 . 2 2 . 2 2 Power 1 | . . . . . . . . . . . . 1 . . . Propulsion 6 | . . 1 . . . . 1 . . . 1 1 . 1 1 Utility 11 | . . 1 . . . 2 1 2 2 . 1 . . 1 1 Weapon . | . . . . . . . . . . . . . . . . Parts Attached 265 | 8 18 17 3 3 3 13 29 6 34 7 19 45 11 30 19 Power 21 | 1 3 1 . . . 2 3 . 1 . 1 4 . 4 1 Engine 10 | 1 3 1 . . . 2 3 . . . . . . . . Core 7 | . . . . . . . . . 1 . 1 3 . 2 . Reactor 4 | . . . . . . . . . . . . 1 . 2 1 Propulsion 55 | 2 7 3 . . . . 3 . 7 . 4 9 5 10 5 Treads 5 | . 2 1 . . . . . . . . . 1 . . 1 Leg 35 | 2 5 2 . . . . 2 . 7 . 3 8 3 1 2 Wheel . | . . . . . . . . . . . . . . . . Hover 15 | . . . . . . . 1 . . . 1 . 2 9 2 Flight . | . . . . . . . . . . . . . . . . Utility 112 | 3 3 9 1 3 . 5 9 4 17 4 11 22 2 11 8 Device 57 | 2 1 5 1 1 . 2 6 1 9 2 4 11 2 6 4 Storage 9 | 1 2 . . 1 . 1 . . . . . 3 . . 1 Processor 25 | . . 1 . . . . 1 2 4 1 5 7 . 2 2 Hackware 1 | . . . . . . . . . 1 . . . . . . Protection 20 | . . 3 . 1 . 2 2 1 3 1 2 1 . 3 1 Artifact . | . . . . . . . . . . . . . . . . Weapon 77 | 2 5 4 2 . 3 6 14 2 9 3 3 10 4 5 5 Energy Gun 16 | . 2 3 . . 1 2 5 1 . . 1 1 . . . Energy Cannon 7 | . . . . . . . . . 1 . . 2 1 1 2 Ballistic Gun 27 | 2 1 1 1 . 1 2 5 . 4 1 1 4 2 . 2 Ballistic Cannon 11 | . . . . . . . . 1 3 2 1 2 1 1 . Launcher 6 | . 1 . . . . 1 1 . . . . 1 . 1 1 Special Weapon 1 | . 1 . . . . . . . . . . . . . . Impact Weapon 4 | . . . 1 . . . 3 . . . . . . . . Slashing Weapon 3 | . . . . . 1 1 . . . . . . . 1 . Piercing Weapon 1 | . . . . . . . . . . . . . . 1 . Special Melee Weapon 1 | . . . . . . . . . 1 . . . . . . Unidentified Prototypes 25 | . 2 3 . . . . 4 . 1 . 1 9 1 3 1 Parts Lost 103 | . 1 5 . . . 3 12 3 7 . 4 9 14 25 20 Power 9 | . . . . . . 1 . 1 1 . . 1 . 4 1 Propulsion 29 | . 1 2 . . . . 1 . 2 . . 1 7 9 6 Utility 40 | . . 1 . . . 1 2 1 3 . 4 7 5 10 6 Weapon 25 | . . 2 . . . 1 9 1 1 . . . 2 2 7 Highest Loss Streak 17 | . 1 3 . . . 2 2 3 4 . 3 4 7 17 13 To Critical Strikes 3 | . . . . . . . . . 1 . . . 2 . . Average Backups 22 | 5 8 11 13 11 11 25 30 27 32 33 29 15 17 15 3 Power 2 | . 1 1 1 1 1 4 5 4 2 2 2 . 1 1 . Propulsion 5 | 3 2 2 3 1 1 2 4 5 10 9 5 5 5 2 . Utility 9 | . 1 4 4 4 5 12 13 12 13 14 14 5 2 3 . Weapon 5 | 1 3 4 3 3 3 6 6 5 4 6 6 4 8 8 2 Tool/Special . | . . . . . . . . . . . . . . . . Unused Backups 83 | 1 2 2 . 4 1 4 12 1 15 10 13 15 . 2 1 Power 11 | . 1 1 . 1 . 1 3 . 2 1 1 . . . . Propulsion 28 | 1 1 1 . 2 1 . 4 . 5 4 7 2 . . . Utility 37 | . . . . 1 . 2 5 1 7 5 4 10 . 2 . Weapon 7 | . . . . . . 1 . . 1 . 1 3 . . 1 Tool/Special . | . . . . . . . . . . . . . . . . Average Slot Usage (%) 80 | . 95 95 90 84 97 76 74 84 81 84 84 87 63 68 18 Engine 4 | . 14 8 11 3 . 6 6 2 2 5 1 . . . . Core 2 | . . 2 . 7 10 1 . 3 2 . 3 8 1 1 . Leg 19 | . 26 22 30 33 31 20 18 23 16 19 19 15 16 . 3 Device 17 | . 10 20 22 16 10 13 13 17 20 22 21 24 13 14 3 Storage 6 | . 13 11 11 11 10 7 7 6 5 5 5 4 4 3 . Processor 5 | . . . . . 7 . 1 6 10 2 11 16 12 8 . Protection 3 | . . 1 . 5 3 1 5 5 4 9 5 . 2 3 1 Energy Gun 3 | . 9 19 9 . 1 5 3 4 . . . . . . . Energy Cannon 3 | . . . . . . . 3 . 1 8 6 8 . 1 2 Ballistic Gun 5 | . 17 . 1 1 1 13 10 5 4 3 2 . 1 1 . Ballistic Cannon 1 | . . . . . . . . . 4 2 3 3 3 2 . Impact Weapon 1 | . . . 1 5 8 . . 6 3 . . . . . . Peak Build Rating 181 | 7 23 47 61 62 60 105 106 107 131 136 158 170 165 181 77 Average Rating 98 | 6 12 32 53 55 56 95 97 104 123 132 145 143 123 134 37 On Entrance 72 | . 7 23 38 61 53 59 86 97 94 126 135 154 147 70 12 Avg Prop Armor Cover (%) 7 | . . 10 . . . 3 8 . 1 . 3 5 4 16 20 Naked Turns 54 | . . . . . . . . . . . . . . 17 37 Heaviest Build 134 | 12 34 40 37 61 63 35 49 33 86 62 64 115 134 112 68 Greatest Support 119 | 20 40 57 90 90 82 73 82 76 70 74 109 119 119 108 60 Greatest Overweight (x) 10 | . 1 10 . . . . 1 . 1 . . 2 6 1 7 Average Overweight (x) . | . . . . . . . . . . . . . . . . Largest Inventory Capacity 40 | 8 15 15 15 20 20 40 40 40 40 40 40 40 20 20 10 Average Capacity 29 | 7 8 15 15 16 20 39 40 40 40 40 40 17 20 19 6 Most Carried 40 | 8 10 15 15 16 20 34 37 33 40 40 40 37 20 19 5 Average Carried 24 | 5 8 12 13 14 16 28 32 29 35 36 32 16 18 15 3 Final Capacity 40 | 8 15 15 15 20 20 40 40 40 40 40 40 40 20 20 5 Final Carried 39 | 6 10 13 15 16 20 34 34 29 39 39 38 38 20 18 3 Transmogrified Parts 162 | . . 11 21 6 7 18 22 6 25 16 13 10 2 5 . Integrity Recovered 2957 | . . 124 186 35 26 759 359 367 396 83 261 298 24 39 . Class Distribution -------------------- 28% | Mutant 19% | Hauler-Mutant 19% | Hauler-Tank 9% | Hauler-Skirmisher 7% | Hauler-Gunner 6% | Skirmisher Dominant Class ---------------- Mutant | -10/Materials Mutant | -9/Materials Mutant | -9/Mines Mutant | -9/Exiles Mutant | -8/Mines Hauler-Skirmisher | -8/Materials Hauler-Tank | -7/Factory Hauler-Mutant | -6/Factory Hauler-Mutant | -5/Factory Hauler-Tank | -5/Extension Hauler-Gunner | -4/Factory Skirmisher | -3/Research Mutant | -3/Testing Mutant | -2/Research Mutant | -1/Access Resources | -11 -10 -9 -9 -9 -8 -8 -7 -6 -5 -5 -4 -3 -3 -2 -1 ----------- Run | Yrd Mat Mat Min Exi Min Mat Fac Fac Fac Ext Fac Res Tes Res Acc Matter Collected 10707 | 364 336 618 513 . 195 714 1733 569 1772 660 743 1421 187 539 343 Remotely . | . . . . . . . . . . . . . . . . Salvage Created 14710 | 174 508 772 398 . 353 1083 2732 469 2215 926 908 2394 322 1084 372 Parts 708 | 21 18 45 24 . 15 60 126 13 103 35 48 104 13 61 22 Haulers Intercepted 13 | . 1 1 . . . 2 3 . 1 . 1 3 . 1 . Recyclers Shooed 20 | . . . . . 1 1 7 . 3 2 . 4 . 1 1 Parts Field Recycled . | . . . . . . . . . . . . . . . . Retrieved Matter . | . . . . . . . . . . . . . . . . Parts Self-Destructed . | . . . . . . . . . . . . . . . . Prevented . | . . . . . . . . . . . . . . . . Parts Restored 1 | . . . . . . . . . . . . . . . 1 Broken 1 | . . . . . . . . . . . . . . . 1 Kills | -11 -10 -9 -9 -9 -8 -8 -7 -6 -5 -5 -4 -3 -3 -2 -1 ------- Run | Yrd Mat Mat Min Exi Min Mat Fac Fac Fac Ext Fac Res Tes Res Acc Combat Hostiles Destroyed 223 | . 10 22 5 . 9 17 45 4 31 13 19 25 4 15 4 Guns 88 | . 7 13 3 . . 14 29 2 10 4 4 . 1 1 . Cannons 77 | . . . . . . . 4 . 19 9 14 22 3 4 2 AOE 50 | . 3 8 2 . 9 3 11 2 1 . 1 . . 9 1 Classes Destroyed 17 | 2 3 5 . . 1 2 2 . 1 . . 1 . . . Worker 22 | . . 2 . . . 3 6 1 2 . . 1 . 2 5 Builder 27 | . . 1 1 . . 2 2 . 4 . 5 1 . 8 3 Tunneler 11 | 6 . . 3 . . 1 . . 1 . . . . . . Hauler 13 | . 1 1 . . . 2 3 . 1 . 1 3 . 1 . Recycler 26 | 1 1 . 1 . 1 2 5 1 3 2 1 4 1 2 1 Mechanic 2 | . . . . . . . . . 2 . . . . . . Operator 5 | . . 1 . . . . . . 1 1 . . . 2 . Watcher 10 | . 1 3 . . . 1 2 . . . 1 . . . 2 Swarmer 56 | . . 10 . . 3 3 10 . 4 6 11 . . 8 1 Grunt 93 | . 10 6 4 . 5 6 23 4 13 5 2 8 3 4 . Brawler 1 | . . . . . . 1 . . . . . . . . . Duelist 4 | . . . . . 1 . 3 . . . . . . . . Sentry 21 | . . 6 1 . . 6 2 1 3 1 . 1 . . . Specialist 2 | . . . . . . . 2 . . . . . . . . Hunter 13 | . . . . . . 1 . . 2 . 2 6 1 1 . Programmer 33 | . . . . . . . 5 . 9 . 4 10 . 2 3 Striker 1 | . . . . . . . . . . . . 1 . . . Guerrilla 2 | . . . . . . . . . 1 1 . . . . . Best Kill Streak 24 | 2 3 9 3 . 4 4 8 3 9 3 7 7 4 24 10 Combat Bots Only 12 | . 3 4 2 . 3 3 4 2 8 3 4 7 3 12 2 Max Kills in Single Turn 12 | 1 2 5 2 . 3 3 3 3 2 2 3 2 2 12 4 Gunslinging 1 | . . . . . . 1 . . . . . . . . . Exploded 6 | . 2 3 2 . 3 1 3 2 1 . 1 . . 6 1 Melee . | . . . . . . . . . . . . . . . . Uniques/NPCs Destroyed 1 | . . . . . . . . . . 1 . . . . . A7 (-5/Extension) Combat | -11 -10 -9 -9 -9 -8 -8 -7 -6 -5 -5 -4 -3 -3 -2 -1 -------- Run | Yrd Mat Mat Min Exi Min Mat Fac Fac Fac Ext Fac Res Tes Res Acc Hostile Shots Fired 2188 | . 52 103 22 . 11 118 239 99 242 38 159 220 222 318 345 Missed 722 | . 16 24 5 . 3 35 84 39 79 8 56 67 75 100 131 Hits 1466 | . 36 79 17 . 8 83 155 60 163 30 103 153 147 218 214 Melee 26 | . . . . . . 3 2 . . . 14 . . . 7 Projectile 1440 | . 36 79 17 . 8 80 153 60 163 30 89 153 147 218 207 AOE 4 | . . . . . . . . . . . . . 2 1 1 Critical Strikes 97 | . 1 2 2 . 1 6 8 3 11 2 11 8 8 20 14 Actively Blocked 18 | . . . . . . . . . . 1 3 4 . 9 1 Part Disruptions 5 | . . . . . . . 2 . . . . . 1 . 2 Damage Taken 28271 | . 446 922 203 . 217 1354 2658 935 2877 370 1828 2883 2820 5282 5476 Core 6126 | . 89 142 15 . 31 249 121 121 470 76 169 560 486 1225 2372 Absorbed by Shields 808 | . . . . . . . . . 242 138 118 310 . . . Redirected to Shielding 336 | . . . . . . . 19 . . 25 78 . . 114 100 Ignored by Resistances 750 | . . . . . . . 42 . 198 . 117 . . 251 142 Regen/Repaired (Parts) 618 | . . . . . . . . . 618 . . . . . . Core Remaining (%) 57 | 100 11 . . . 47 50 82 85 . 85 85 . 19 15 . Volleys Fired 835 | 21 53 53 18 . 16 71 136 19 128 33 74 121 15 38 39 Largest 3 | 2 2 2 2 . 3 3 3 2 3 3 3 3 3 3 3 Hottest 336 | 40 112 130 111 . 103 145 138 130 168 284 330 336 169 232 280 Shots Fired 1811 | 42 76 89 25 . 25 170 370 32 296 90 179 250 36 58 73 Gun 978 | 42 68 77 22 . 16 165 302 29 127 30 45 27 14 8 6 Cannon 772 | . . . . . . . 63 . 169 60 134 220 19 44 63 Launcher 53 | . 3 9 3 . 9 5 5 3 . . . 3 3 6 4 Special 8 | . 5 3 . . . . . . . . . . . . . Kinetic 982 | 42 60 . 5 . 6 124 206 17 247 37 75 83 33 25 22 Thermal 604 | . 13 40 1 . . 8 96 8 45 53 104 163 . 27 46 Explosive 34 | . 3 9 3 . 9 2 . . . . . . . 4 4 Electromagnetic 191 | . . 40 16 . 10 36 68 7 4 . . 4 3 2 1 Robot Hit Streak 20 | 6 17 11 15 . 16 10 16 12 20 7 7 11 6 5 4 Robot Miss Streak 8 | 4 3 8 1 . 4 5 8 3 4 6 6 5 7 6 3 Penetration Max 2 | . . . . . . . . . 2 1 1 2 1 . 1 Secondary Targets 12 | . 1 2 1 . . 4 4 . . . . . . . . Max Gunslinging Chain 2 | . 1 1 1 . . 2 1 . . . . . . . . Shots Hit Robots 990 | 23 50 52 20 . 14 97 210 25 173 65 79 113 15 30 24 Core Hits 594 | 12 27 49 10 . 17 49 115 16 86 28 37 55 19 46 28 Critical Kills 19 | . 1 . . . . . . . 7 3 . 5 1 1 1 Critical Parts Destroyed 38 | . . . . . . . 3 . 18 5 3 5 3 1 . Critical Strikes 91 | . 2 5 2 . . . 5 . 36 8 7 12 8 4 2 Burn 8 | . 1 5 . . . . 2 . . . . . . . . Meltdown 4 | . . . . . . . . . . . . 3 . . 1 Destroy 52 | . 1 . . . . . 3 . 25 8 2 7 4 2 . Blast 24 | . . . . . . . . . 11 . 4 2 4 2 1 Corrupt 2 | . . . 2 . . . . . . . . . . . . Smash 1 | . . . . . . . . . . . 1 . . . . Melee Attacks 107 | . . . 6 . . 12 13 10 18 22 7 . . 18 1 Impact 37 | . . . 3 . . . 4 10 14 . 6 . . . . Slashing 28 | . . . . . . 12 9 . 3 . . . . 4 . Piercing 18 | . . . 3 . . . . . . . . . . 14 1 Sneak Attacks 34 | . . . 3 . . . 2 1 2 22 2 . . 2 . Combat Hostiles . | . . . . . . . . . . . . . . . . Follow-up Attacks . | . . . . . . . . . . . . . . . . Damage Inflicted 33475 | 246 896 1475 623 . 860 2034 5468 948 4754 1232 3014 4988 1084 3776 2077 Guns 10728 | 246 588 879 297 . 185 1738 3290 401 1474 151 634 509 151 175 10 Cannons 13187 | . . . . . . . 688 . 2876 1081 2025 4224 407 697 1189 Explosions 8280 | . 308 596 119 . 675 296 1318 337 336 . 131 255 516 2564 829 Melee 1139 | . . . 207 . . . 172 210 68 . 224 . . 258 . Ramming 141 | . . . . . . . . . . . . . 10 82 49 Kinetic 12621 | 246 501 . 28 . 27 1370 2290 182 3700 338 963 1579 558 415 424 Thermal 10451 | . 87 384 16 . 175 208 1754 195 525 894 1827 3154 . 457 775 Explosive 5496 | . 308 596 119 . 500 126 276 . 336 . . . . 2406 829 Electromagnetic 3541 | . . 495 253 . 158 330 890 361 125 . . 255 516 158 . Impact 572 | . . . 138 . . . . 210 . . 224 . . . . Slashing 240 | . . . . . . . 172 . 68 . . . . . . Piercing 327 | . . . 69 . . . . . . . . . . 258 . Entropic 86 | . . . . . . . 86 . . . . . . . . Highest Corruption 19 | . . 2 14 14 14 7 8 1 4 4 5 . 8 14 19 Average Corruption 5 | . . 2 10 14 14 4 5 1 3 4 4 . 5 8 10 Corruption Purged . | . . . . . . . . . . . . . . . . Corruption Blocked 31 | . . . . . . . . . . . . 16 15 . . Effects 276 | . . 3 31 19 17 26 56 2 30 22 29 . 6 15 20 Message Errors 82 | . . . 17 4 7 9 14 . 7 6 9 . 3 1 5 Matter Fused 68 | . . 1 6 8 3 1 12 1 9 6 7 . 1 5 8 Heat Flow Errors 27 | . . . 1 4 1 3 6 . 5 3 3 . 1 . . Energy Discharges 24 | . . 1 3 1 3 3 6 . 1 1 1 . 1 1 2 Parts Rejected 4 | . . 1 . . . . 1 1 . . . . . 1 . Parts Fused 4 | . . . . 1 1 1 . . 1 . . . . . . Data Loss (minor) 31 | . . . 2 1 1 5 8 . 6 5 1 . . 2 . Data Loss (major) 9 | . . . . . . 1 2 . . . 4 . . 1 1 Misfires 10 | . . . 1 . 1 1 3 . . . 3 . . 1 . Alerts 4 | . . . . . . 1 2 . . . . . . 1 . Misdirections 4 | . . . . . . . . . . . . . . . 4 Weapon Failures 9 | . . . 1 . . 1 2 . 1 1 1 . . 2 . Overload Shots . | . . . . . . . . . . . . . . . . Overflow Damage 1121 | . 1 . 107 . . . 125 120 93 63 229 188 3 117 75 Projectiles 451 | . . . . . . . 50 . 41 63 59 145 . 44 49 Explosions 203 | . 1 . . . . . 75 16 6 . 6 43 3 27 26 Melee 467 | . . . 107 . . . . 104 46 . 164 . . 46 . Knockbacks 58 | . . . 2 . . . . 2 23 . 10 11 4 3 3 Impact 6 | . . . 2 . . . . 2 . . 2 . . . . Kinetic 43 | . . . . . . . . . 19 . 7 8 4 2 3 Secondary 9 | . . . . . . . . . 4 . 1 3 . 1 . Self-Inflicted Damage 1154 | . . 27 . . 94 60 406 16 93 . . 37 98 182 141 Shots 30 | . . 1 . . 2 2 6 1 1 . . 2 9 3 3 Rammed 8 | . . . . . . . . . . . . . . 6 2 Targets Rammed 17 | . . . . . . . . . . . . . 2 9 6 Kicked 9 | . . . . . . . . . . . . . 2 3 4 Crushed . | . . . . . . . . . . . . . . . . Highest Temperature 714 | . 216 401 267 198 152 562 394 219 714 417 452 611 499 356 309 Average Temperature 131 | . 48 177 90 93 53 121 122 68 135 119 115 170 284 97 56 Received Heat Transfer 4630 | . 264 273 114 . 72 630 867 315 903 98 6 180 338 327 243 Effects 78 | . . 8 . . . 11 6 . 16 . 8 15 10 4 . Shutdowns 15 | . . 1 . . . 1 . . 3 . 2 4 4 . . Energy Bleed 12 | . . 3 . . . 1 3 . 1 . . 2 2 . . Interference 23 | . . . . . . 7 3 . . . 3 6 . 4 . Matter Decay 6 | . . 2 . . . . . . 3 . 1 . . . . Short Circuit 10 | . . 1 . . . 1 . . 2 . 2 2 2 . . Damage (minor) 3 | . . 1 . . . 1 . . 1 . . . . . . Damage (major) 6 | . . . . . . . . . 4 . . . 2 . . Damage (core) 3 | . . . . . . . . . 2 . . 1 . . . Siege Activations . | . . . . . . . . . . . . . . . . Martial Activations . | . . . . . . . . . . . . . . . . Shielding Activations . | . . . . . . . . . . . . . . . . Robots Disrupted 1 | . . . . . . . 1 . . . . . . . . Combat Hostiles 1 | . . . . . . . 1 . . . . . . . . Robots Corrupted 7 | . . . 2 . . . 2 . 1 . 2 . . . . Combat Hostiles 2 | . . . . . . . 1 . 1 . . . . . . Parts Fried 20 | . . 1 6 . . . 4 4 1 1 2 . . 1 . Impact Corruptions 14 | . . . 3 . . . . 3 . . 8 . . . . Robots Melted 4 | . . . . . . . . . . . . 3 . . 1 Combat Hostiles 4 | . . . . . . . . . . . . 3 . . 1 Parts Melted 16 | . . 4 . . . . 2 . 2 1 1 3 . . 3 Heat Transferred 10855 | . 259 1145 37 . 150 385 2648 450 750 1312 796 1813 . 444 666 Parts Sabotaged . | . . . . . . . . . . . . . . . . Parts Stolen . | . . . . . . . . . . . . . . . . Parts Stripped . | . . . . . . . . . . . . . . . . Power Chain Reactions 10 | . . . . . 1 2 6 . . . 1 . . . . Alert | -11 -10 -9 -9 -9 -8 -8 -7 -6 -5 -5 -4 -3 -3 -2 -1 ------- Run | Yrd Mat Mat Min Exi Min Mat Fac Fac Fac Ext Fac Res Tes Res Acc Maximum Alert Level 4 | . . 1 . . 1 1 3 2 4 4 3 2 1 2 3 Low Security (%) 39 | 100 100 52 100 . 95 95 24 . 31 . . . . 81 . Level 1 22 | . . 47 . . 5 4 28 51 25 . . 64 100 . 16 Level 2 19 | . . . . . . . 26 48 11 29 44 35 . 17 79 Level 3 16 | . . . . . . . 20 . 21 69 55 . . . 3 Level 4 1 | . . . . . . . . . 9 1 . . . . . Level 5 . | . . . . . . . . . . . . . . . . High Security . | . . . . . . . . . . . . . . . . Max Security . | . . . . . . . . . . . . . . . . Sterilizations 1 | . . . . . . . . . . 1 . . . . . Peak Influence 1334 | 10 173 354 194 . 218 299 921 477 1334 1115 937 656 394 629 748 Initial 651 | . . 1 123 . . 81 135 439 210 651 546 489 364 128 298 Average 378 | 1 77 176 123 . 35 100 424 390 498 829 730 389 317 208 520 Influence Increases 11431 | 35 335 673 346 . 324 772 1657 280 1878 1032 1135 945 230 986 803 Destroy 0b10 Robot/C 5360 | . 200 440 220 . 180 340 960 120 680 520 520 500 120 320 240 Destroy 0b10 Robot/NC 610 | 35 15 40 25 . 5 55 90 10 80 15 45 45 5 75 70 Destroy Leader 1046 | . 44 128 40 . 30 116 180 40 164 60 72 86 . 30 56 Allied During Kill 543 | . . . 16 . . . 17 29 15 287 26 6 26 8 113 Successful Hack 109 | . . . . . . 18 58 . 28 . . . 5 . . Disable Machine 675 | . . . . . 30 60 105 . 165 . 150 60 15 30 60 Destroy Structure 1732 | . 16 35 30 . 79 48 112 6 288 60 292 218 14 300 234 Lose Combat Pursuer 810 | . 60 30 15 . . 135 135 75 30 90 30 30 45 105 30 Miscellaneous 546 | . . . . . . . . . 428 . . . . 118 . Influence Decreases 10872 | 35 331 361 639 23 114 683 1058 747 979 1247 1317 1230 650 716 742 Entered New Map 3468 | . . 3 193 23 . 129 164 459 221 679 569 444 284 100 200 Time Decay 5436 | 35 321 328 386 . 114 524 636 198 668 428 498 546 206 286 262 Lost Part 1000 | . 10 30 . . . 30 110 30 70 . 40 90 140 250 200 Lost Ally 560 | . . . 60 . . . 40 60 20 140 60 . 20 80 80 Purge Threat 408 | . . . . . . . 108 . . . 150 150 . . . Squads Dispatched 65 | . 2 2 . . . 2 12 5 12 3 5 6 2 6 8 Investigation 10 | . . . . . . 2 1 2 1 1 . . . 2 1 Extermination 23 | . . . . . . . 6 1 5 . 3 3 1 2 2 Reinforcement 28 | . 2 2 . . . . 5 2 6 1 1 3 1 2 3 Assault 3 | . . . . . . . . . . 1 1 . . . 1 Garrison 1 | . . . . . . . . . . . . . . . 1 Intercept . | . . . . . . . . . . . . . . . . Searches Triggered . | . . . . . . . . . . . . . . . . Construction Impeded 9 | . . 1 . . . . . 2 3 . . 1 . 1 1 Haulers Reinforced 4 | . . . . . . . 2 . . . . 2 . . . Active Scanning Responses . | . . . . . . . . . . . . . . . . Cargo Convoy Interrupts . | . . . . . . . . . . . . . . . . Stealth | -11 -10 -9 -9 -9 -8 -8 -7 -6 -5 -5 -4 -3 -3 -2 -1 --------- Run | Yrd Mat Mat Min Exi Min Mat Fac Fac Fac Ext Fac Res Tes Res Acc Distress Signals 31 | . 1 2 . . 1 2 6 . 3 6 . 1 1 4 4 Communications Jammed 1 | . . . . . . . . . 1 . . . . . . Distress Signals 1 | . . . . . . . . . 1 . . . . . . Times Spotted 436 | . 18 27 12 . 7 26 67 13 61 27 37 30 16 45 50 Peak Tracking Total 15 | . 5 5 3 . 3 7 6 8 7 7 6 5 8 13 15 Tactical Retreats 36 | . 2 2 1 . . 6 6 2 2 5 2 1 2 4 1 Traps | -11 -10 -9 -9 -9 -8 -8 -7 -6 -5 -5 -4 -3 -3 -2 -1 ------- Run | Yrd Mat Mat Min Exi Min Mat Fac Fac Fac Ext Fac Res Tes Res Acc Traps Triggered 18 | . . . . . . 3 3 2 2 2 3 . . 3 . Indirectly . | . . . . . . . . . . . . . . . . Trap Hack Attempts 1 | . . . . . . . . . . 1 . . . . . Triggered . | . . . . . . . . . . . . . . . . Disarmed . | . . . . . . . . . . . . . . . . Reprogrammed . | . . . . . . . . . . . . . . . . Reused . | . . . . . . . . . . . . . . . . Traps Extracted . | . . . . . . . . . . . . . . . . Installed . | . . . . . . . . . . . . . . . . Triggered . | . . . . . . . . . . . . . . . . Machines | -11 -10 -9 -9 -9 -8 -8 -7 -6 -5 -5 -4 -3 -3 -2 -1 ---------- Run | Yrd Mat Mat Min Exi Min Mat Fac Fac Fac Ext Fac Res Tes Res Acc Machines Disabled 46 | . . . . . 2 4 7 . 11 1 10 4 1 2 4 Max in Single Turn 3 | . . . . . 2 1 3 . 2 1 2 1 1 1 1 Garrison Access 1 | . . . . . . . . . 1 . . . . . . Machines Repaired . | . . . . . . . . . . . . . . . . Machines Dismantled . | . . . . . . . . . . . . . . . . Machines Sabotaged . | . . . . . . . . . . . . . . . . Overloaded Fab Kills . | . . . . . . . . . . . . . . . . Hacking | -11 -10 -9 -9 -9 -8 -8 -7 -6 -5 -5 -4 -3 -3 -2 -1 --------- Run | Yrd Mat Mat Min Exi Min Mat Fac Fac Fac Ext Fac Res Tes Res Acc Machines Accessed 48 | . 2 . 1 1 . 7 7 1 10 4 3 3 3 5 1 Terminals 39 | . 2 . . . . 7 6 1 6 4 3 2 3 4 1 Fabricators . | . . . . . . . . . . . . . . . . Repair Stations 1 | . . . . . . . . . 1 . . . . . . Recycling Units 2 | . . . . . . . . . 1 . . . . 1 . Scanalyzers 2 | . . . . . . . 1 . 1 . . . . . . Garrison Access 2 | . . . . . . . . . 1 . . 1 . . . Total Hacks 101 | . 6 . 1 1 . 19 21 1 15 5 7 5 6 12 2 Successful 36 | . 2 . 1 1 . 8 12 . 7 . 2 1 1 1 . Failed 65 | . 4 . . . . 11 9 1 8 5 5 4 5 11 2 Catastrophic 29 | . 2 . . . . 6 3 1 4 3 1 3 2 3 1 Database Lockouts . | . . . . . . . . . . . . . . . . Manual 23 | . 4 . . 1 . 2 10 . 2 1 1 . . 2 . Terminals 85 | . 6 . . . . 19 18 1 8 5 7 4 6 9 2 Fabricators . | . . . . . . . . . . . . . . . . Repair Stations 2 | . . . . . . . . . 2 . . . . . . Recycling Units 4 | . . . . . . . . . 1 . . . . 3 . Scanalyzers 6 | . . . . . . . 3 . 3 . . . . . . Garrison Access 2 | . . . . . . . . . 1 . . 1 . . . Terminal Hacks 24 | . 2 . 1 1 . 8 6 . 2 . 2 1 1 . . Part Schematic 2 | . . . . . . . 1 . 1 . . . . . . Robot Analysis 1 | . 1 . . . . . . . . . . . . . . Prototype ID Bank 2 | . . . . . . 2 . . . . . . . . . Open Door 2 | . . . 1 . . . . . 1 . . . . . . Level Access Points 1 | . . . . . . . 1 . . . . . . . . Branch Access Points 2 | . . . . . . 1 1 . . . . . . . . Unreport Threat 3 | . . . . . . . 1 . . . 1 1 . . . Locate Traps 2 | . . . . . . 1 . . . . 1 . . . . Hauler Manifests 2 | . . . . . . 1 1 . . . . . . . . Zone Layout 6 | . 1 . . . . 3 1 . . . . . 1 . . Proto ID Catalog 1 | . . . . 1 . . . . . . . . . . . Fabricator Hacks . | . . . . . . . . . . . . . . . . Repair Station Hacks 2 | . . . . . . . . . 2 . . . . . . Scan Component 1 | . . . . . . . . . 1 . . . . . . Repair 1 | . . . . . . . . . 1 . . . . . . Recycling Unit Hacks 1 | . . . . . . . . . . . . . . 1 . Process 1 | . . . . . . . . . . . . . . 1 . Scanalyzer 5 | . . . . . . . 3 . 2 . . . . . . Retrieve Study 5 | . . . . . . . 3 . 2 . . . . . . Garrison Access Hacks 1 | . . . . . . . . . 1 . . . . . . Seal Access 1 | . . . . . . . . . 1 . . . . . . Unauthorized Hacks 3 | . . . . . . . 3 . . . . . . . . Terminals 3 | . . . . . . . 3 . . . . . . . . Track 1 | . . . . . . . 1 . . . . . . . . Botnet 1 | . . . . . . . 1 . . . . . . . . Operators 1 | . . . . . . . 1 . . . . . . . . Fabricators . | . . . . . . . . . . . . . . . . Repair Stations . | . . . . . . . . . . . . . . . . Recycling Units . | . . . . . . . . . . . . . . . . Scanalyzers . | . . . . . . . . . . . . . . . . Garrison Access . | . . . . . . . . . . . . . . . . Data Cores Recovered 3 | . . . . . . . . . . . 1 . . 2 . Used 1 | . . . . . . . . . . . 1 . . . . Hacking Detections 42 | . 2 . . . . 7 6 1 7 4 3 3 3 5 1 Full Trace Events 4 | . . . . . . 1 1 . . 1 . . . . 1 Feedback Events 1 | . . . . . . . 1 . . . . . . . . Corruption 1 | . . . . . . . 1 . . . . . . . . Feedback Blocked . | . . . . . . . . . . . . . . . . Robot Schematics Acquired . | . . . . . . . . . . . . . . . . Robots Built . | . . . . . . . . . . . . . . . . Authchips . | . . . . . . . . . . . . . . . . Time . | . . . . . . . . . . . . . . . . Total Robot Build Rating . | . . . . . . . . . . . . . . . . Part Schematics Acquired 2 | . . . . . . . 1 . 1 . . . . . . Parts Built . | . . . . . . . . . . . . . . . . Authchips . | . . . . . . . . . . . . . . . . Time . | . . . . . . . . . . . . . . . . Total Part Build Rating . | . . . . . . . . . . . . . . . . Part Studies Acquired 5 | . . . . . . . 3 . 2 . . . . . . Parts Repaired 1 | . . . . . . . . . 1 . . . . . . Time 44 | . . . . . . . . . 44 . . . . . . Parts Recycled . | . . . . . . . . . . . . . . . . Recycled Matter 158 | . . . . . . . . . . . . . . 158 . Retrieved Matter . | . . . . . . . . . . . . . . . . Retrieved Components . | . . . . . . . . . . . . . . . . Parts Scanalyzed . | . . . . . . . . . . . . . . . . Part Schematics Acquired . | . . . . . . . . . . . . . . . . Parts Damaged . | . . . . . . . . . . . . . . . . Bothacking | -11 -10 -9 -9 -9 -8 -8 -7 -6 -5 -5 -4 -3 -3 -2 -1 ------------ Run | Yrd Mat Mat Min Exi Min Mat Fac Fac Fac Ext Fac Res Tes Res Acc Used RIF Installer . | . . . . . . . . . . . . . . . . Robots Hacked 2 | . . . . . . . . . 1 . 1 . . . . Non-combat 2 | . . . . . . . . . 1 . 1 . . . . Combat . | . . . . . . . . . . . . . . . . Robot Hacks Applied 2 | . . . . . . . . . 1 . 1 . . . . find_chute 2 | . . . . . . . . . 1 . 1 . . . . Relay Couplers Released . | . . . . . . . . . . . . . . . . Fabnet Peak Effective % . | . . . . . . . . . . . . . . . . Robots Rewired 10 | . . . . . . . . . . 10 . . . . . Allies Hacked 2 | . . . . . . . . . . . . . . 1 1 Hacks Repelled . | . . . . . . . . . . . . . . . . Allies | -11 -10 -9 -9 -9 -8 -8 -7 -6 -5 -5 -4 -3 -3 -2 -1 -------- Run | Yrd Mat Mat Min Exi Min Mat Fac Fac Fac Ext Fac Res Tes Res Acc Total Allies 41 | . . . 4 . . . 4 4 2 16 1 1 1 4 4 Largest Group 12 | . . . 3 1 . . 4 4 2 12 8 1 1 2 4 Highest-Rated Group 371 | . . . 36 31 . . 172 116 78 371 232 99 99 164 276 Highest-Rated Ally 149 | . . . 31 31 . . 43 29 39 149 119 99 99 82 69 Total Orders 4 | . . . . . . . . . . 4 . . . . . STAY 2 | . . . . . . . . . . 2 . . . . . FOLLOW 2 | . . . . . . . . . . 2 . . . . . Ally Attacks 285 | . . . 29 . . . 25 23 38 72 21 5 25 16 31 Total Damage 7376 | . . . 193 . . . 578 321 632 1209 1499 112 743 397 1692 Kills 57 | . . . 6 . . . 3 2 5 13 14 . 2 1 11 Allies Corrupted 1 | . . . . . . . . . . . . . . . 1 Allies Melted . | . . . . . . . . . . . . . . . . X0-1V1 Amusement Gains 474 | . 15 27 19 . 10 32 82 5 35 14 67 31 17 68 52 Average Entertainment 53 | . 27 22 32 . 15 19 77 62 61 39 73 67 62 50 68 Good Acts 118 | . . 3 6 . 3 8 20 4 16 2 5 11 7 18 15 Bad Acts 60 | . 1 4 4 . . 7 . 2 9 5 8 9 1 6 4 Intel | -11 -10 -9 -9 -9 -8 -8 -7 -6 -5 -5 -4 -3 -3 -2 -1 ------- Run | Yrd Mat Mat Min Exi Min Mat Fac Fac Fac Ext Fac Res Tes Res Acc Active Infowar (turns) 7607 | 149 411 337 133 2 365 . 472 358 1815 469 1151 1241 326 101 277 Optics 1869 | . . . . . 365 . 298 3 . . . 1203 . . . Sensors 4047 | . . 110 133 . . . 119 357 1420 . 412 1118 . 101 277 IFF 1338 | . . . . . . . . . . 273 739 . 326 . . Seismic 876 | 149 411 227 . . . . . . . . . . . . 89 Decoding 196 | . . . . . . . . . . 196 . . . . . Cloaking 1720 | . . . . 2 . . . . 920 . . 798 . . . Jamming 393 | . . . . . . . . . 393 . . . . . . ECM 55 | . . . . . . . 55 . . . . . . . . Robot Analysis Total 1 | . 1 . . . . . . . . . . . . . . Derelict Logs Recovered 3 | . . . 3 . . . . . . . . . . . . Drone Launches . | . . . . . . . . . . . . . . . . Drone Recoveries . | . . . . . . . . . . . . . . . . Decoded 0b10 Intel 4 | . . . . . . . . . . 4 . . . . . Traps 3 | . . . . . . . . . . 3 . . . . . Emergency Access 1 | . . . . . . . . . . 1 . . . . . Exploration | -11 -10 -9 -9 -9 -8 -8 -7 -6 -5 -5 -4 -3 -3 -2 -1 ------------- Run | Yrd Mat Mat Min Exi Min Mat Fac Fac Fac Ext Fac Res Tes Res Acc Turns Passed 16240 | 240 868 802 912 432 500 1519 2352 406 2615 1051 1334 1579 420 633 577 Spaces Moved 10165 | 136 449 393 686 341 368 984 1390 247 1504 663 839 825 215 711 414 Core 250 | 6 . 2 . . . . . . . . . . . 44 198 Treads 86 | . 18 65 . . . . . . . . . . . . 3 Legs 9093 | 130 431 326 686 341 368 984 1390 247 1504 663 839 825 206 11 142 Wheels . | . . . . . . . . . . . . . . . . Hover 736 | . . . . . . . . . . . . . 9 656 71 Flight . | . . . . . . . . . . . . . . . . Fastest Speed 41 | 50 120 100 113 113 116 100 117 120 107 112 103 107 112 41 50 Average Speed 119 | 116 143 138 120 119 118 119 126 121 128 118 113 131 159 53 99 Slowest Speed 550 | 120 240 550 140 120 120 140 200 123 217 121 120 260 530 131 400 Overloaded Moves . | . . . . . . . . . . . . . . . . Propulsion Burnouts . | . . . . . . . . . . . . . . . . Robots Hopped . | . . . . . . . . . . . . . . . . Potential Cave-ins . | . . . . . . . . . . . . . . . . Cave-ins Triggered 1 | . . . . . . . . . . . . . . . 1 Exploration Rate (%) 40 | 5 61 38 97 62 78 47 34 6 40 68 19 18 38 18 18 Regions Visited 15 Branch Regions 5 Pre-discovered Areas 2 | . . . 2 . . . . . . . . . . . . Known Exits Taken 11 | . . . 1 . 1 1 1 1 1 1 1 1 1 1 . Unknown Exits Taken 4 | 1 1 1 . 1 . . . . . . . . . . . Scrap Searched 3 | . . . 1 . 2 . . . . . . . . . . Spaces Dug 123 | . 5 2 3 . . 11 11 6 24 . 11 27 . 13 10 Terrain Destroyed 1061 | . 16 40 30 . 140 46 139 6 148 29 104 115 10 114 124 Melee 56 | . . . 3 . . 11 11 6 13 . 2 . . 10 . Projectile 359 | . 5 3 . . . . 1 . 75 27 74 114 10 25 25 AOE 643 | . 11 37 27 . 140 35 127 . 60 . 28 . . 79 99 Terrain Rammed . | . . . . . . . . . . . . . . . . Walls Destroyed . | . . . . . . . . . . . . . . . . Machines Disabled . | . . . . . . . . . . . . . . . . Actions | -11 -10 -9 -9 -9 -8 -8 -7 -6 -5 -5 -4 -3 -3 -2 -1 --------- Run | Yrd Mat Mat Min Exi Min Mat Fac Fac Fac Ext Fac Res Tes Res Acc Total 12646 | 176 593 552 739 368 408 1200 1715 303 1905 857 1065 1122 261 871 511 Wait 735 | 2 41 43 11 11 12 84 96 15 156 111 74 32 7 32 8 Move 10150 | 135 448 392 685 340 367 983 1389 246 1503 662 838 824 214 710 414 Hop . | . . . . . . . . . . . . . . . . Pick Up 220 | 8 10 17 5 4 7 28 28 3 38 5 29 24 . 9 5 Fast Attach 106 | 6 8 5 1 1 1 1 5 1 6 3 4 26 7 16 15 Attach 115 | 1 . 7 2 1 2 5 14 4 15 . 10 18 5 18 13 Detach 82 | . 2 4 4 2 1 4 4 . 9 3 7 20 8 7 7 Swap 184 | 1 16 21 4 2 . 12 27 6 31 9 19 24 2 10 . Drop 88 | 2 15 10 3 7 2 . 3 . 1 1 3 33 1 4 3 Fire 835 | 21 53 53 18 . 16 71 136 19 128 33 74 121 15 38 39 Melee 106 | . . . 6 . . 12 13 9 18 22 7 . . 18 1 Ram 8 | . . . . . . . . . . . . . . 6 2 Kick 9 | . . . . . . . . . . . . . 2 3 4 Crush . | . . . . . . . . . . . . . . . . Escape Stasis 6 | . . . . . . . . . . 6 . . . . . Rewire 1 | . . . . . . . . . . 1 . . . . . Trap 1 | . . . . . . . . . . 1 . . . . . Miscellaneous . | . . . . . . . . . . . . . . . . Route ------- -11/Scrapyard -10/Materials (discovered 4 exits: [*Mat x2] / [*Min] / [*Sub]) -9/Materials (discovered 3 exits: *Min x2 / *Sto) -9/Mines (discovered 3 exits: *Mat x2 / *Exi) -9/Exiles (discovered 2 exits: *Min x2) -8/Mines -8/Materials (discovered 2 exits: *Fac x2) -7/Factory (discovered 6 exits: *Fac x4 / *Low x2) -6/Factory -5/Factory (discovered 3 exits: *Fac / *Upp / *Ext) -5/Extension (discovered 3 exits: *Fac x2 / [*Cet]) -4/Factory (discovered 3 exits: *Res x3) -3/Research -3/Testing -2/Research (discovered 3 exits: *Acc x2 / Qua) -1/Access (discovered 2 exits: Sur / Com) History --------- Turn | Location | Event 5 | -11/Scrapyard | Discovered new exit (range 16) 241 | -11/Scrapyard | Entered Materials 264 | -10/Materials | Discovered new exit (range 16) 327 | -10/Materials | Build established: Mutant 706 | -10/Materials | Discovered new exit (range 8) 831 | -10/Materials | Discovered new exit (range 8) 869 | -10/Materials | Made a sacrifice at D.C.S.S. Altar Unit 869 | -10/Materials | Forcibly received Sfc. Transmogifier from X0-1V1 870 | -10/Materials | Core integrity fell below 50% 870 | -10/Materials | Core integrity fell below 20% 922 | -10/Materials | Discovered new exit (range 16) 1041 | -10/Materials | Derelicts attacked the area 1095 | -10/Materials | X0-1V1 vaporized surrounding terrain (radius 15) 1109 | -10/Materials | Entered another Materials area 1109 | -9/Materials | Evolved 2 slots: Propulsion x1, Utility x1 1203 | -9/Materials | X0-1V1 foreshadows a heat wave 1335 | -9/Materials | Lost 3 parts (2n1w) 1428 | -9/Materials | Discovered new exit (range 16) 1430 | -9/Materials | Ambient heat levels rising (+10) 1520 | -9/Materials | X0-1V1 sent you into danger 1581 | -9/Materials | Discovered new exit (range 9) 1599 | -9/Materials | Ambient heat levels rising (+10) 1715 | -9/Materials | Identified exit to Storage 1807 | -9/Materials | Core integrity fell below 50% 1824 | -9/Materials | Ambient heat levels falling (-10) 1880 | -9/Materials | Discovered new exit (range 13) 1911 | -9/Materials | Entered Mines 1923 | -9/Mines | X0-1V1 vaporized surrounding terrain (radius 15) 1923 | -9/Mines | Discovered new exit (range 11) 2010 | -9/Mines | Core integrity restored by X0-1V1 (+57) 2020 | -9/Mines | X0-1V1 sent allied S-10 Pest (x3) 2129 | -9/Mines | Escorted by a lone wolf Derelict 2145 | -9/Mines | System corruption reached 10% 2152 | -9/Mines | Learned location of Storage (-9) 2385 | -9/Mines | Identified exit to Materials 2385 | -9/Mines | X0-1V1 revealed exit location to -8/Materials 2470 | -9/Mines | Found the Drone Emporium 2473 | -9/Mines | Found Prototype Device 2806 | -9/Mines | Identified exit to Exiles 2806 | -9/Mines | X0-1V1 revealed exit location to -9/Exiles 2818 | -9/Mines | Deemed a non-threat by the Exiles lab entrance 2823 | -9/Mines | Entered Exiles 2823 | -9/Exiles | Accompanied by 1 ally 2838 | -9/Exiles | Discovered new exit (range 15) 2890 | -9/Exiles | Met 8R-AWN 2911 | -9/Exiles | Met EX-HEX 2957 | -9/Exiles | Met EX-DEC 2975 | -9/Exiles | Met EX-BIN 2989 | -9/Exiles | Aligned with FarCom system 2991 | -9/Exiles | Given EX-Vault access code 3019 | -9/Exiles | Opened EX-Vault 3035 | -9/Exiles | Found Lightpack 2.0 3042 | -9/Exiles | Found Cloak of Protection 3047 | -9/Exiles | Found AWS/Autocannon 3072 | -9/Exiles | Warned to stay clear of 0b10 Research branches 3077 | -9/Exiles | Exiles lab attacked by MAIN.C 3171 | -9/Exiles | Discovered new exit (range 10) 3255 | -9/Exiles | Stole three prototypes: Lightpack 2.0, Cloak of Protection, AWS/Autocannon 3255 | -9/Exiles | Entered Mines 3498 | -8/Mines | X0-1V1 put everyone to sleep 3539 | -8/Mines | Weapon slot count permanently improved by X0-1V1 (+1) 3727 | -8/Mines | Discovered exit to Materials (range 12) 3755 | -8/Mines | Entered Materials 3755 | -8/Materials | Evolved 2 slots: Utility x2 4269 | -8/Materials | X0-1V1 activates XOMVISION 4342 | -8/Materials | X0-1V1 sent you into danger 4504 | -8/Materials | Discovered new exit (range 11) 4560 | -8/Materials | Weapon slot count temporarily expanded by X0-1V1 (+3) 4647 | -8/Materials | Identified exit to Factory 4647 | -8/Materials | X0-1V1 revealed exit location to -7/Factory 4784 | -8/Materials | X0-1V1 vaporized surrounding terrain (radius 17) 4827 | -8/Materials | Build established: Hauler-Skirmisher 4872 | -8/Materials | Energy generation permanently improved by X0-1V1 (+10; -100 max core) 4907 | -8/Materials | Weapon slot count reverted to normal (-3) 5026 | -8/Materials | X0-1V1 activates XOMVISION 5274 | -8/Materials | Entered Factory 5274 | -7/Factory | Evolved 2 slots: Propulsion x1, Utility x1 5276 | -7/Factory | FarCom data flow suspended 5614 | -7/Factory | X0-1V1 activates XOMVISION 6021 | -7/Factory | Build established: Hauler-Tank 6088 | -7/Factory | X0-1V1 activates XOMVISION 6313 | -7/Factory | Discovered new exit (range 18) 6337 | -7/Factory | Identified exit to Lower Caves 6521 | -7/Factory | X0-1V1 activates XOMVISION 6654 | -7/Factory | Core integrity permanently improved by X0-1V1 (+250) 7118 | -7/Factory | Identified exit to Factory 7118 | -7/Factory | X0-1V1 revealed exit location to -6/Factory 7167 | -7/Factory | X0-1V1 sent you to a vault 7365 | -7/Factory | P-60 Hacker assimilated allied Chaingunner 4b 7373 | -7/Factory | P-60 Hacker assimilated allied Chaingunner 4c 7626 | -7/Factory | Entered another Factory area 7626 | -6/Factory | Evolved 2 slots: Utility x2 7857 | -6/Factory | X0-1V1 activates XOMVISION 7872 | -6/Factory | X0-1V1 sent you to a vault 7917 | -6/Factory | Build established: Hauler-Mutant 7959 | -6/Factory | Discovered new exit (range 15) 8024 | -6/Factory | Identified exit to Factory 8032 | -6/Factory | Entered another Factory area 8032 | -5/Factory | Evolved 2 slots: Utility x2 8062 | -5/Factory | Lost 3 parts (1p1u1w) 8255 | -5/Factory | X0-1V1 added 0b10 threat records associated with you (minor) 8392 | -5/Factory | Discovered new exit (range 4) 8395 | -5/Factory | Identified exit to Upper Caves 8397 | -5/Factory | Discovered new exit (range 5) 8401 | -5/Factory | Identified exit to Factory 8830 | -5/Factory | X0-1V1 sent you into danger 8831 | -5/Factory | Allied Derelicts emerged from ambush trap array 8981 | -5/Factory | Destroyed 8 combat bots 9595 | -5/Factory | Lost 4 parts (1n2u1w) 9766 | -5/Factory | X0-1V1 sent allied Guerrilla (x2) 10048 | -5/Factory | Repaired Lgt. Armored Exoskeleton+ 10082 | -5/Factory | X0-1V1 caused items to flee you 10139 | -5/Factory | Build established: Hauler-Tank 10186 | -5/Factory | X0-1V1 added 0b10 threat records associated with you (minor) 10293 | -5/Factory | Items stopped fleeing you 10396 | -5/Factory | Identified exit to Extension 10396 | -5/Factory | X0-1V1 revealed exit location to -5/Extension 10602 | -5/Factory | X0-1V1 added 0b10 threat records associated with you (considerable) 10603 | -5/Factory | Core integrity restored by X0-1V1 (+210) 10647 | -5/Factory | Entered Extension 10653 | -5/Extension | X0-1V1 dreamt of freedom 10658 | -5/Extension | Rescued a captive Derelict 10659 | -5/Extension | Rescued a captive Derelict 10661 | -5/Extension | Rescued a captive Derelict 10662 | -5/Extension | Rescued a captive Derelict 10663 | -5/Extension | Rescued a captive Derelict 10664 | -5/Extension | Rescued a captive Derelict 10676 | -5/Extension | Rescued a captive Derelict 10677 | -5/Extension | Rescued a captive Derelict 10680 | -5/Extension | Rescued a captive Derelict 10682 | -5/Extension | Rescued a captive Derelict 10682 | -5/Extension | Rescued a captive Derelict 10685 | -5/Extension | Rescued a captive Derelict 10687 | -5/Extension | X0-1V1 sent hostile Guerrilla (x1) 10689 | -5/Extension | Rescued a captive Derelict 10697 | -5/Extension | Rescued a captive Derelict 10890 | -5/Extension | Rescued A7 10935 | -5/Extension | Discovered exit to Factory (range 15) 10951 | -5/Extension | X0-1V1 caused items to flee you 10990 | -5/Extension | Destroyed A7 11113 | -5/Extension | Items stopped fleeing you 11115 | -5/Extension | Extracted ID and sensor layout for unrecognized location from A7's data core 11419 | -5/Extension | X0-1V1 made a cryptic comment about sterilization and BL-4Z3 11428 | -5/Extension | Lost 3 allies 11547 | -5/Extension | First assault squad dispatched 11549 | -5/Extension | Sterilization system engaged 11549 | -5/Extension | Non-combat units ordered to evacuate 11591 | -5/Extension | Core integrity restored by X0-1V1 (+190) 11649 | -5/Extension | Combat units ordered to evacuate 11658 | -5/Extension | Discovered exit to Factory (range 10) 11659 | -5/Extension | Discovered new exit (range 6) 11698 | -5/Extension | Entered Factory 11698 | -4/Factory | Accompanied by 8 allies 11698 | -4/Factory | Evolved 2 slots: Propulsion x1, Utility x1 11715 | -4/Factory | X0-1V1 enhanced Transport squad support 11769 | -4/Factory | Lost 6 allies 11898 | -4/Factory | Spotted B-86 Titan 11931 | -4/Factory | Discovered new exit (range 8) 11944 | -4/Factory | Identified exit to Research 12066 | -4/Factory | X0-1V1 sent allied Executioner (x1) 12111 | -4/Factory | Lost 3 parts (3u) 12249 | -4/Factory | Found Prototype Processor 12312 | -4/Factory | Discovered exit to Research (range 15) 12674 | -4/Factory | Build established: Hauler-Gunner 12717 | -4/Factory | Discovered exit to Research (range 13) 12948 | -4/Factory | First assault squad dispatched 13032 | -4/Factory | Entered Research 13032 | -3/Research | Evolved 2 slots: Power x1, Propulsion x1 13291 | -3/Research | X0-1V1 announced a LAN party 13339 | -3/Research | Identified Exp. Signal Interpreter 13346 | -3/Research | Found Fusion Bomb Launcher 13577 | -3/Research | X0-1V1 sent you into danger 13621 | -3/Research | Build established: Skirmisher 13858 | -3/Research | Found Prototype Processor 13858 | -3/Research | Identified Spectral Analyzer 13991 | -3/Research | Found Prototype Launcher 13991 | -3/Research | Identified Com. Tesla Bomb Launcher 14247 | -3/Research | X0-1V1 sent allied Striker (x1) 14287 | -3/Research | Destroyed Striker 14478 | -3/Research | Lost 4 parts (1p1n2u) 14516 | -3/Research | Destroyed 7 combat bots 14564 | -3/Research | Discovered new exit (range 3) 14567 | -3/Research | Identified exit to Testing 14593 | -3/Research | X0-1V1 enhanced Transport squad support 14611 | -3/Research | Entered Testing 14617 | -3/Testing | Identified exit to Research 14617 | -3/Testing | X0-1V1 revealed exit location to -2/Research 14825 | -3/Testing | X0-1V1 downgraded hostiles (x4) 14827 | -3/Testing | X0-1V1 sent allied Striker (x1) 14838 | -3/Testing | Core integrity fell below 50% 14899 | -3/Testing | Lost 7 parts (4n2u1w) 15006 | -3/Testing | Lost 7 parts (3n3u1w) 15011 | -3/Testing | X0-1V1 caused items to flee you 15030 | -3/Testing | Core integrity fell below 20% 15031 | -3/Testing | Entered Research 15031 | -2/Research | Evolved 2 slots: Propulsion x1, Utility x1 15127 | -2/Research | Identified exit to Quarantine 15127 | -2/Research | X0-1V1 revealed exit location to -2/Quarantine 15153 | -2/Research | X0-1V1 put everyone to sleep 15179 | -2/Research | X0-1V1 activates XOMVISION 15206 | -2/Research | Build established: Mutant 15233 | -2/Research | Identified exit to Access 15233 | -2/Research | X0-1V1 revealed exit location to -1/Access 15257 | -2/Research | X0-1V1 redirected Transport squads to designated parking area 15281 | -2/Research | X0-1V1 added 0b10 threat records associated with you (minor) 15303 | -2/Research | Spotted B-90 Cyclops 15382 | -2/Research | Lost 3 parts (1p2u) 15497 | -2/Research | X0-1V1 woke everyone up 15568 | -2/Research | X0-1V1 sent allied P-80 Master (x2) 15573 | -2/Research | X0-1V1 enhanced Transport squad support 15581 | -2/Research | Spotted B-90 Cyclops 15583 | -2/Research | X0-1V1 turns hostiles against one another 15597 | -2/Research | Destroyed 12 combat bots 15613 | -2/Research | System corruption reached 10% 15623 | -2/Research | Released all parts (9) 15624 | -2/Research | X0-1V1 downgraded hostiles (x4) 15627 | -2/Research | Core integrity fell below 50% 15629 | -2/Research | Discovered exit to Access (range 10) 15634 | -2/Research | Lost 4 allies 15653 | -2/Research | Lost 17 parts (3p5n7u2w) 15662 | -2/Research | Core integrity fell below 20% 15664 | -2/Research | Entered Access 15664 | -1/Access | Evolved 2 slots: Propulsion x1, Utility x1 15756 | -1/Access | X0-1V1 sent you to a vault 15800 | -1/Access | Garrison activated, responded to threat 15836 | -1/Access | Lost 3 allies 15900 | -1/Access | Lost 4 parts (1n1u2w) 15900 | -1/Access | Identified exit to Command 15900 | -1/Access | X0-1V1 revealed exit location to -1/Command 15904 | -1/Access | Found Fusion Bomb Launcher 15987 | -1/Access | System corruption reached 10% 16014 | -1/Access | Core integrity fell below 50% 16043 | -1/Access | Core integrity fell below 20% 16064 | -1/Access | X0-1V1 rescued you from certain death 16066 | -1/Access | Lost 13 parts (1p4n4u4w) 16103 | -1/Access | Spotted B-99 Colossus 16118 | -1/Access | Identified exit to Surface 16118 | -1/Access | X0-1V1 revealed exit location to -0/Surface 16122 | -1/Access | X0-1V1 activates XOMVISION 16143 | -1/Access | X0-1V1 whisked you away to safety 16164 | -1/Access | First assault squad dispatched 16242 | -1/Access | Crushed by falling debris 16242 | -1/Access | Smashed by cave-in Last Messages --------------- 16164_ System corrupted: Matter fused (-6). 16164_ ALERT: Unidentified disturbance in Zone 4E, assault force dispatched. 16164_ U-05 Engineer builds a Wall. 16171_ K-01 Serf cleans the Terminal. 16178_ Connecting with Terminal... 16179_ System corrupted: Energy discharge (-35). X0-1V1's Piety Tracker suddenly appears amidst shimmering waves of color. 16195_ Connecting with Terminal... 16195_ ALERT: Suspicious activity at Terminal A001. Dispatching Investigation squad. 16201_ System corrupted: Matter fused (-9). 16204_ Terminal disabled. 16226_ System corrupted: Matter fused (-5). 16235_ U-05 Engineer builds a Wall. 16242_ System corrupted: Matter fused (-8). 16242_ The unstable cave ceiling collapses. 16242_ Crushed by falling debris. 16242_ X0-1V1 laughs nastily! Map ----- +----------------------------------------------------+ | ?????????????????????????????????????????????????? | | ?????????????????????????????????????????????????? | | ?????????????????????????????????????????????????? | | ?????????????????????????????????????????????????? | | ?????????????????????????????????????????????????? | | ?????????????????????????????????????????????????? | | ?????????????????????????????????????????????????? | | ?????????????????????????????????????????????????? | | ?????????????????????????????????????????????????? | | ????????????????? ??????????????????????????????? | | ????????????????? ??h???????????????????????????? | | ????????????????? ??????????????????????????????? | | ????????????????# ??????????????????????????????? | | ????????????????# ###+######????????????????????? | | ????????????????#Ah# #????????????????????? | | ????????????????# # #????????????????????? | | ????????????????# # "" #????????????????????? | | ????????????????# u# """ #????????????????????? | | ????????????????# A# T" #????????????????????? | | ????????????????# # """ #????????????????????? | | ????????????????# # "" #????????????????????? | | ????????????????+ # #????????????????????? | | ????????????????# # #????????????????????? | | ????????????????# ######;###????????????????????? | | ????????????????# ##???# #?????????????????????? | | ????????????????# #????#@;#?????????????????????? | | ????????????????# #######"#?????????????????????? | | ????????????????# """T"" "??????????????????????? | | ????????????????# u""" "" "??????????????BB??????? | | ????????????????#hh u "??????????????BB??????? | | ????????????????# ! "??????????????????????? | | ????????????????# p "??????????????????????? | | ????????????????# "????